Cogmind - Beta 14 @@@ ROGUE MODE // 2024.08.13 @ 12:44:14 Player: Darcyisverycute Result: Destroyed by D-53 Grenadier with Mini Grenade Launcher Performance ------------- Evolutions (0) 0 Regions Visited (2) 400 Robots Destroyed (0) 0 Value Destroyed (0) 0 Prototype IDs (0) 0 Alien Tech Used (0) 0 Bonus (0) 0 TOTAL SCORE: 400 Bonus ------- None Cogmind --------- Core Integrity 0/250 Matter 269/300 Energy 88/100 System Corruption 10% Temperature Warm (150) Movement Walking (120) Location -10/Mines Parts ------- > --- POWER (1) -------- (None) > --- PROPULSION (2) --- Flexi-carbon Leg > --- UTILITY (2) ------ Targeting Computer Targeting Computer > --- WEAPON (2) ------- (None) > --- INVENTORY (5) ---- Small Storage Unit Peak State ------------ > --- POWER ------------ Light Ion Engine > --- PROPULSION ------- Flexi-carbon Leg > --- UTILITY ---------- Targeting Computer > --- WEAPON ----------- Beam Cannon Rocket Launcher > --- INVENTORY -------- Small Storage Unit Targeting Computer EM Pulse Gun [Rating: 10] Favorites ----------- Power Light Ion Engine Engine Light Ion Engine Propulsion Aluminum Leg Leg Aluminum Leg Utility Small Storage Unit Storage Small Storage Unit Processor Targeting Computer Weapon EM Pulse Gun Energy Gun EM Pulse Gun Energy Cannon Beam Cannon Launcher Rocket Launcher Build | -11 -10 -10 ------- Run | Yrd Mat Min Slots Evolved . | . . . Power . | . . . Propulsion . | . . . Utility . | . . . Weapon . | . . . Parts Attached 16 | 6 . 10 Power 2 | 1 . 1 Engine 2 | 1 . 1 Core . | . . . Reactor . | . . . Propulsion 3 | 2 . 1 Treads . | . . . Leg 3 | 2 . 1 Wheel . | . . . Hover . | . . . Flight . | . . . Utility 3 | 1 . 2 Device . | . . . Storage 1 | 1 . . Processor 2 | . . 2 Hackware . | . . . Protection . | . . . Artifact . | . . . Weapon 8 | 2 . 6 Energy Gun 4 | 2 . 2 Energy Cannon 2 | . . 2 Ballistic Gun . | . . . Ballistic Cannon . | . . . Launcher 2 | . . 2 Special Weapon . | . . . Impact Weapon . | . . . Slashing Weapon . | . . . Piercing Weapon . | . . . Special Melee Weapon . | . . . Unidentified Prototypes . | . . . Parts Lost 8 | . . 8 Power 2 | . . 2 Propulsion 2 | . . 2 Utility . | . . . Weapon 4 | . . 4 Highest Loss Streak 4 | . . 4 To Critical Strikes . | . . . Average Slot Usage (%) 59 | . 85 45 Engine 12 | . 14 11 Leg 19 | . 28 14 Storage 7 | . 14 3 Processor 6 | . . 9 Energy Gun 12 | . 28 3 Energy Cannon 1 | . . 2 Peak Build Rating 10 | 6 6 10 Average Rating 5 | 4 6 6 On Entrance 4 | . 6 6 Naked Turns . | . . . Heaviest Build 13 | 12 12 13 Greatest Support 20 | 20 20 20 Greatest Overweight (x) 4 | 2 . 4 Average Overweight (x) . | . . . Largest Inventory Capacity 8 | 8 8 8 Average Capacity 6 | 6 8 5 Most Carried 5 | . 2 5 Average Carried 2 | . 1 4 Final Capacity 8 | 8 8 5 Final Carried 2 | . 2 1 Class Distribution -------------------- 100% | Mutant Dominant Class ---------------- Mutant | -10/Materials Mutant | -10/Mines Resources | -11 -10 -10 ----------- Run | Yrd Mat Min Matter Collected 373 | 202 . 171 Remotely . | . . . Salvage Created 37 | . . 37 Parts . | . . . Haulers Intercepted . | . . . Recyclers Shooed . | . . . Parts Field Recycled . | . . . Retrieved Matter . | . . . Parts Self-Destructed . | . . . Prevented . | . . . Kills | -11 -10 -10 ------- Run | Yrd Mat Min Combat Hostiles Destroyed 15 | . . 15 Cannons 1 | . . 1 AOE 14 | . . 14 Classes Destroyed 1 | . . 1 Assembled 15 | . . 15 Best Kill Streak 15 | . . 15 Combat Bots Only 15 | . . 15 Max Kills in Single Turn 6 | . . 6 Gunslinging . | . . . Exploded 6 | . . 6 Melee . | . . . Uniques/NPCs Destroyed . | . . . Combat | -11 -10 -10 -------- Run | Yrd Mat Min Hostile Shots Fired 46 | . 1 45 Missed 10 | . . 10 Damage Taken 947 | . 11 936 Core 259 | . . 259 Absorbed by Shields . | . . . Core Remaining (%) 100 | 100 . . Volleys Fired 10 | . . 10 Largest 2 | . . 2 Hottest 100 | . . 100 Shots Fired 15 | . . 15 Gun 7 | . . 7 Cannon 2 | . . 2 Launcher 6 | . . 6 Special . | . . . Kinetic . | . . . Thermal 2 | . . 2 Explosive 6 | . . 6 Electromagnetic 7 | . . 7 Robot Hit Streak 3 | . . 3 Robot Miss Streak 2 | . . 2 Penetration Max . | . . . Secondary Targets . | . . . Shots Hit Robots 5 | . . 5 Core Hits 27 | . . 27 Critical Kills . | . . . Critical Parts Destroyed . | . . . Critical Strikes . | . . . Melee Attacks . | . . . Impact . | . . . Slashing . | . . . Piercing . | . . . Sneak Attacks . | . . . Combat Hostiles . | . . . Follow-up Attacks . | . . . Damage Inflicted 990 | . . 990 Guns 23 | . . 23 Cannons 35 | . . 35 Explosions 932 | . . 932 Melee . | . . . Ramming . | . . . Kinetic . | . . . Thermal 35 | . . 35 Explosive 932 | . . 932 Electromagnetic 23 | . . 23 Impact . | . . . Slashing . | . . . Piercing . | . . . Highest Corruption 10 | . . 10 Average Corruption 9 | . . 9 Corruption Purged . | . . . Corruption Blocked . | . . . Effects 6 | . . 6 Matter Fused 2 | . . 2 Heat Flow Errors 3 | . . 3 Data Loss (minor) 1 | . . 1 Overload Shots . | . . . Overflow Damage 51 | . . 51 Projectiles . | . . . Explosions 51 | . . 51 Melee . | . . . Knockbacks . | . . . Impact . | . . . Kinetic . | . . . Secondary . | . . . Self-Inflicted Damage 107 | . . 107 Shots 3 | . . 3 Rammed . | . . . Targets Rammed . | . . . Kicked . | . . . Crushed . | . . . Highest Temperature 210 | . . 210 Average Temperature 67 | . . 67 Received Heat Transfer 46 | . 6 40 Siege Activations . | . . . Robots Corrupted . | . . . Combat Hostiles . | . . . Parts Fried . | . . . Impact Corruptions . | . . . Robots Melted . | . . . Combat Hostiles . | . . . Parts Melted . | . . . Heat Transferred 74 | . . 74 Parts Sabotaged . | . . . Parts Stolen . | . . . Parts Stripped . | . . . Power Chain Reactions . | . . . Alert | -11 -10 -10 ------- Run | Yrd Mat Min Peak Influence 10 | . . 10 Initial . | . . . Average . | . . . Maximum Alert Level . | . . . Low Security (%) 100 | 100 100 100 Level 1 . | . . . Level 2 . | . . . Level 3 . | . . . Level 4 . | . . . Level 5 . | . . . High Security . | . . . Max Security . | . . . Squads Dispatched . | . . . Investigation . | . . . Extermination . | . . . Reinforcement . | . . . Assault . | . . . Garrison . | . . . Intercept . | . . . Searches Triggered . | . . . Construction Impeded . | . . . Haulers Reinforced . | . . . Active Scanning Responses . | . . . Cargo Convoy Interrupts . | . . . Stealth | -11 -10 -10 --------- Run | Yrd Mat Min Distress Signals . | . . . Communications Jammed . | . . . Distress Signals . | . . . Times Spotted 21 | . 2 19 Peak Tracking Total 20 | . 2 20 Tactical Retreats 1 | . . 1 Traps | -11 -10 -10 ------- Run | Yrd Mat Min Traps Triggered . | . . . Indirectly . | . . . Trap Hack Attempts . | . . . Triggered . | . . . Disarmed . | . . . Reprogrammed . | . . . Reused . | . . . Traps Extracted . | . . . Installed . | . . . Triggered . | . . . Machines | -11 -10 -10 ---------- Run | Yrd Mat Min Machines Disabled . | . . . Max in Single Turn . | . . . Machines Repaired . | . . . Machines Dismantled . | . . . Machines Sabotaged . | . . . Overloaded Fab Kills . | . . . Hacking | -11 -10 -10 --------- Run | Yrd Mat Min Machines Accessed . | . . . Terminals . | . . . Fabricators . | . . . Repair Stations . | . . . Recycling Units . | . . . Scanalyzers . | . . . Garrison Access . | . . . Total Hacks . | . . . Successful . | . . . Failed . | . . . Catastrophic . | . . . Database Lockouts . | . . . Manual . | . . . Terminals . | . . . Fabricators . | . . . Repair Stations . | . . . Recycling Units . | . . . Scanalyzers . | . . . Garrison Access . | . . . Terminal Hacks . | . . . Fabricator Hacks . | . . . Repair Station Hacks . | . . . Recycling Unit Hacks . | . . . Scanalyzer . | . . . Garrison Access Hacks . | . . . Unauthorized Hacks . | . . . Terminals . | . . . Fabricators . | . . . Repair Stations . | . . . Recycling Units . | . . . Scanalyzers . | . . . Garrison Access . | . . . Data Cores Recovered . | . . . Used . | . . . Hacking Detections . | . . . Full Trace Events . | . . . Feedback Events . | . . . Feedback Blocked . | . . . Robot Schematics Acquired . | . . . Robots Built . | . . . Authchips . | . . . Time . | . . . Total Robot Build Rating . | . . . Part Schematics Acquired . | . . . Parts Built . | . . . Authchips . | . . . Time . | . . . Total Part Build Rating . | . . . Parts Repaired . | . . . Time . | . . . Parts Recycled . | . . . Recycled Matter . | . . . Retrieved Matter . | . . . Retrieved Components . | . . . Parts Scanalyzed . | . . . Part Schematics Acquired . | . . . Parts Damaged . | . . . Bothacking | -11 -10 -10 ------------ Run | Yrd Mat Min Used RIF Installer . | . . . Robots Hacked . | . . . Non-combat . | . . . Combat . | . . . Robot Hacks Applied . | . . . Relay Couplers Released . | . . . Fabnet Peak Effective % . | . . . Robots Rewired . | . . . Allies Hacked . | . . . Hacks Repelled . | . . . Allies | -11 -10 -10 -------- Run | Yrd Mat Min Total Allies . | . . . Largest Group . | . . . Highest-Rated Group . | . . . Highest-Rated Ally . | . . . Total Orders . | . . . Ally Attacks . | . . . Total Damage . | . . . Kills . | . . . Allies Corrupted . | . . . Allies Melted . | . . . Intel | -11 -10 -10 ------- Run | Yrd Mat Min Robot Analysis Total . | . . . Derelict Logs Recovered . | . . . Drone Launches . | . . . Drone Recoveries . | . . . Exploration | -11 -10 -10 ------------- Run | Yrd Mat Min Turns Passed 307 | 58 82 167 Spaces Moved 215 | 44 67 104 Core 16 | 7 . 9 Treads . | . . . Legs 199 | 37 67 95 Wheels . | . . . Hover . | . . . Flight . | . . . Fastest Speed 50 | 50 120 50 Average Speed 119 | 113 120 121 Slowest Speed 250 | 150 120 250 Overloaded Moves . | . . . Propulsion Burnouts . | . . . Robots Hopped . | . . . Cave-ins Triggered . | . . . Exploration Rate (%) 16 | 5 23 20 Regions Visited 2 Branch Regions 1 Pre-discovered Areas . | . . . Known Exits Taken . | . . . Unknown Exits Taken 2 | 1 1 . Scrap Searched . | . . . Spaces Dug . | . . . Terrain Destroyed 58 | . . 58 Melee . | . . . Projectile . | . . . AOE 58 | . . 58 Terrain Rammed . | . . . Walls Destroyed . | . . . Machines Disabled . | . . . Actions | -11 -10 -10 --------- Run | Yrd Mat Min Total 245 | 49 68 128 Wait . | . . . Move 213 | 43 66 104 Hop . | . . . Pick Up 2 | . 2 . Fast Attach 10 | 6 . 4 Attach 5 | . . 5 Detach 4 | . . 4 Swap 1 | . . 1 Drop . | . . . Fire 10 | . . 10 Melee . | . . . Ram . | . . . Kick . | . . . Crush . | . . . Escape Stasis . | . . . Rewire . | . . . Trap . | . . . Miscellaneous . | . . . Route ------- -11/Scrapyard -10/Materials -10/Mines History --------- Turn | Location | Event 7 | -11/Scrapyard | Discovered new exit (range 15) 59 | -11/Scrapyard | Entered Materials 119 | -10/Materials | Discovered new exit (range 15) 141 | -10/Materials | Entered Mines 142 | -10/Mines | Assembled infested the area 147 | -10/Mines | Assisted by a Guerilla fighting off Assembled 148 | -10/Mines | Received a Rocket Launcher from a helpful Derelict 170 | -10/Mines | System corruption reached 10% 191 | -10/Mines | Destroyed 15 combat bots 200 | -10/Mines | Lost 4 parts (1p2n1w) 305 | -10/Mines | Core integrity fell below 50% 308 | -10/Mines | Core integrity fell below 20% 308 | -10/Mines | Destroyed by D-53 Grenadier with Mini Grenade Launcher Last Messages --------------- 00262_ U-05 Engineer builds a Wall. 00263_ T-07 Excavator is excavating. 00264_ U-05 Engineer builds a Wall. 00265_ T-07 Excavator is excavating. 00266_ U-05 Engineer lays Concrete. 00267_ T-07 Excavator is excavating. 00273_ U-05 Engineer lays Concrete. 00276_ T-07 Excavator is excavating. 00276_ U-05 Engineer lays Concrete. 00278_ U-05 Engineer builds a Wall. 00281_ System corrupted: Heat flow error (+124). 00299_ Rocket Launcher destroyed. 00299_ Destroyed Rocket Launcher. 00301_ System corrupted: Heat flow error (+177). 00303_ Beam Cannon destroyed. 00304_ Lgt. Ion Engine destroyed. 00305_ The unstable cave ceiling collapses. 00306_ D-53 Grenadier IFF system glitched. 00307_ EM Pulse Gun destroyed. 00307_ D-53 Grenadier destroyed. Map ----- +----------------------------------------------------+ | ???????????????????????????????????????????????? | | ???????????????????????????????????????????????? | | ???????????????????????????????????????????????? | | ???????????????????????????????????????????????? | | ???????????????????????????????????????????????? | | ???????????????????????????????????????????????? | | ???????????????????????????????????????????????? | | ???????????????????????????????????????????????? | | ???????????????????????????????????????????????? | | ???????????????????????????????????????????????? | | ???????????????????????????????????????????????? | | ?????????????????##????????????????????????????? | | ???????# ?????## ????##########????#????????? | | ????????# ## ##### ## ## #???????? | | ????????# % #???????? | | ???????# %% #???????? | | ?????? ######## ### #????????? | | ?????? ### ?????????# #???? ##?????????? | | ????????????####???????????# #??????#??????????? | | ?????????????????????####### #?????????????????? | | ????????????????????## #?????????????????? | | ???????????????????## #?????????????????? | | ??????????????????## ##????????????????? | | ??????????????????# #????????????????? | | ??????????????????## d #????????????????? | | ??????????????????# @ #????????????????? | | ??????????????????# #????????????????? | | ??????????????????## #????????????????? | | ???????????????????# ##????????????????? | | ???????????????????## ##?????????????????? | | ????????????????????# ######??????????????????? | | ???????????????????## #???????????????????????? | | ??????????????????## #####???????????????????? | | ?????????????????## ##??????????????????? | | ?????????????????# #??????????????????? | | ?????????????????# #??????????????????? | | ????????????????## #??????????????????? | | ????????????????# #??????????????????? | | ????????????????# #??????????????????? | | ????????????????# ##?###??????????????? | | ????????????????# #### ###????????????? | | ????????????????# # #?###????????? | | ????????????????## " # ### #????????? | | ?????????????????## ### # #????????? | | ??????????????????##### # #????????? | | ????????????????????### # ######????????? | | ????????????????????# ##???????????? | | ????????????????????# # ## ! ##??????????? | | ????????????????????# # # #??????????? | | ???????????????????? ?## # #??????????? | +----------------------------------------------------+ Best States ------------- Heat Dissipation 25 Energy Generation 10 Energy Capacity 125 Matter Stores 300 Matter Capacity 300 Sight Range 16 Terrain Scan Density 10 Evasion (%) 55 Targeting Accuracy 5 Item Schematics ----------------- None Robot Schematics ------------------ None Fabricated ------------ Nothing Alien Tech Used ----------------- None Achievements -------------- Exterminator Challenges ------------ None Game ------ Seed PointExpertAutopenetrator Manual? 0 Play Time 00:04:41 Cumulative 65.8 hours Start 2024.08.13 @ 12:41:31 End 2024.08.13 @ 12:44:14 Sessions 1 Manual Loads 0 Difficulty Rogue Special Mode None Game No. 33 Rogue 25 Adventurer 8 Explorer 0 Win Type - Total 1 Types 1/0/0/0/0/0/0/0/0 Lore% 25 Gallery% 44 Achievement% 41 Wizard Run 0 Options --------- Layout 0 ASCII 0 Keyboard 1 Movement Numpad Keybinds 1 Fullscreen 1 Font 18/SmallcapsGlow Map View 76x50 Zoom Use 0% Tactical HUD 1 Map Filters NONE Filters NONE Steam 1 RUN: 2ec044e5-6c3d-470c-b9f2-ca8e12790d7c